fUST/lending_fUST_20240715
["ID","MTS","AMOUNT","RATE_DAILY","PERIOD"]
[332180897,1721010644184,-500.0,0.00024657,2]
[332180898,1721010644194,-507.93337842,0.00024657,2]
[332180899,1721010644203,-500.0,0.00024657,2]
[332180900,1721010644212,-507.89166043,0.00024657,2]
[332180901,1721010644221,-500.0,0.00024657,2]
[332180902,1721010644230,-500.0,0.00024657,2]
[332180903,1721010644240,-239.65300197,0.00024657,2]
[332180904,1721010644250,-514.63428777,0.00024657,2]
[332180905,1721010644260,-500.0,0.00024657,2]
[332180906,1721010644270,-500.0,0.00024657,2]
[332180907,1721010644279,-500.0,0.00024657,2]
[332180908,1721010644289,-519.62652879,0.00024657,2]
[332180909,1721010644298,-500.0,0.00024657,2]
[332180910,1721010644309,-504.53959312,0.00024657,2]
[332180911,1721010644320,-500.0,0.00024657,2]
[332180912,1721010644330,-504.52259304,0.00024657,2]
[332180913,1721010644339,-500.0,0.00024657,2]
[332180914,1721010644350,-521.88,0.00024657,2]
[332180915,1721010644359,-521.88,0.00024657,2]
[332180916,1721010644369,-521.88,0.00024657,2]
[332180917,1721010644379,-521.88,0.00024657,2]
[332180918,1721010644389,-521.88,0.00024657,2]
[332180919,1721010644399,-502.7569908,0.00024657,2]
[332180920,1721010644408,-521.88,0.00024657,2]
[332180921,1721010644419,-521.88,0.00024657,2]
[332180922,1721010644430,-500.0,0.00024657,2]
[332180923,1721010644440,-500.0,0.00024657,2]
[332180924,1721010644450,-500.0,0.00024657,2]
[332180925,1721010644460,-500.0,0.00024657,2]
[332180926,1721010644469,-503.25983227,0.00024657,2]
[332180927,1721010644478,-500.0,0.00024657,2]
[332180928,1721010644487,-533.01025501,0.00024657,2]
[332180929,1721010644498,-500.0,0.00024657,2]
[332180930,1721010644507,-500.0,0.00024657,2]
[332180931,1721010644518,-513.01643468,0.00024657,2]
[332180932,1721010644527,-500.0,0.00024657,2]
[332180933,1721010644537,-500.0,0.00024657,2]
[332180934,1721010644549,-518.32528398,0.00024657,2]
[332180935,1721010644558,-500.0,0.00024657,2]
[332180936,1721010644568,-500.0,0.00024657,2]
[332180937,1721010644577,-500.0,0.00024657,2]
[332180938,1721010644586,-500.0,0.00024657,2]
[332180939,1721010644597,-500.0,0.00024657,2]
[332180940,1721010644605,-500.0,0.00024657,2]
[332180941,1721010644614,-500.0,0.00024657,2]
[332180942,1721010644624,-500.0,0.00024657,2]
[332180943,1721010644634,-500.0,0.00024657,2]
[332180944,1721010644644,-500.0,0.00024657,2]
[332180945,1721010644652,-500.0,0.00024657,2]
[332180946,1721010644661,-500.0,0.00024657,2]
[332180947,1721010644670,-500.0,0.00024657,2]
[332180948,1721010644680,-500.0,0.00024657,2]
[332180949,1721010644689,-500.0,0.00024657,2]
[332180950,1721010644698,-500.0,0.00024657,2]
[332180951,1721010644707,-500.0,0.00024657,2]
[332180952,1721010644716,-500.0,0.00024657,2]
[332180953,1721010644725,-506.97245312,0.00024657,2]
[332180954,1721010644735,-500.0,0.00024657,2]
[332180955,1721010644745,-500.0,0.00024657,2]
[332180956,1721010644755,-500.0,0.00024657,2]
[332180957,1721010644767,-500.0,0.00024657,2]
[332180958,1721010644776,-521.83424642,0.00024657,2]
[332180959,1721010644786,-500.0,0.00024657,2]
[332180960,1721010644795,-500.0,0.00024657,2]
[332180961,1721010644806,-500.0,0.00024657,2]
[332180962,1721010644815,-500.0,0.00024657,2]
[332180963,1721010644823,-500.0,0.00024657,2]
[332180964,1721010644833,-502.98690756,0.00024657,2]
[332180965,1721010644842,-500.0,0.00024657,2]
[332180966,1721010644851,-500.0,0.00024657,2]
[332180967,1721010644860,-500.0,0.00024657,2]
[332180968,1721010644869,-3432.03,0.00024657,2]
[332180969,1721010644878,-500.0,0.00024657,2]
[332180970,1721010644888,-500.0,0.00024657,2]
[332180971,1721010644897,-500.0,0.00024657,2]
[332180972,1721010644906,-500.0,0.00024657,2]
[332180973,1721010644915,-504.4872834,0.00024657,2]
[332180974,1721010644923,-500.0,0.00024657,2]
[332180975,1721010644932,-500.0,0.00024657,2]
[332180976,1721010644941,-967.93,0.00024657,2]
[332180977,1721010644950,-500.0,0.00024657,2]
[332180978,1721010644960,-500.0,0.00024657,2]
[332180979,1721010644969,-500.0,0.00024657,2]
[332180980,1721010644977,-500.0,0.00024657,2]
[332180981,1721010644987,-500.0,0.00024657,2]
[332180982,1721010644995,-500.0,0.00024657,2]
[332180984,1721010645005,-500.0,0.00024657,2]
[332180985,1721010645017,-509.42922524,0.00024657,2]
[332180986,1721010645026,-500.0,0.00024657,2]
[332180987,1721010645036,-500.0,0.00024657,2]
[332180988,1721010645047,-503.15259238,0.00024657,2]
[332180989,1721010645056,-500.0,0.00024657,2]
[332180990,1721010645065,-500.0,0.00024657,2]
[332180991,1721010645075,-500.0,0.00024657,2]
[332180992,1721010645085,-500.0,0.00024657,2]
[332180993,1721010645094,-500.0,0.00024657,2]
[332180994,1721010645104,-506.67737168,0.00024657,2]
[332180995,1721010645205,-500.0,0.00024657,2]
[332180996,1721010645216,-500.0,0.00024657,2]
[332180997,1721010645226,-500.0,0.00024657,2]
[332180998,1721010645235,-500.0,0.00024657,2]
[332180999,1721010645244,-501.8492573,0.00024657,2]
[332181000,1721010645253,-500.0,0.00024657,2]
[332181001,1721010645266,-506.01164318,0.00024657,2]
[332181002,1721010645277,-512.03730218,0.00024657,2]
[332181003,1721010645287,-500.0,0.00024657,2]
[332181004,1721010645297,-500.0,0.00024657,2]
[332181005,1721010645307,-500.0,0.00024657,2]
[332181006,1721010645317,-500.0,0.00024657,2]
[332181007,1721010645326,-500.0,0.00024657,2]
[332181008,1721010645335,-500.0,0.00024657,2]
[332181009,1721010645345,-500.0,0.00024657,2]
[332181010,1721010645354,-500.0,0.00024657,2]
[332181011,1721010645364,-500.0,0.00024657,2]
[332181012,1721010645373,-500.0,0.00024657,2]
[332181013,1721010645383,-500.0,0.00024657,2]
[332181014,1721010645393,-500.0,0.00024657,2]
[332181015,1721010645402,-500.0,0.00024657,2]
[332181016,1721010645411,-500.0,0.00024657,2]
[332181017,1721010645420,-500.0,0.00024657,2]
[332181018,1721010645429,-507.93935251,0.00024657,2]
[332181019,1721010645438,-500.0,0.00024657,2]
[332181020,1721010645447,-500.0,0.00024657,2]
[332181021,1721010645457,-500.0,0.00024657,2]
[332181022,1721010645466,-500.0,0.00024657,2]
[332181023,1721010645475,-500.0,0.00024657,2]
[332181024,1721010645485,-500.0,0.00024657,2]
[332181025,1721010645494,-648.14392656,0.00024657,2]
[332181026,1721010645504,-500.0,0.00024657,2]
[332181027,1721010645517,-500.0,0.00024657,2]
[332181028,1721010645526,-500.0,0.00024657,2]
[332181029,1721010645535,-500.0,0.00024657,2]
[332181030,1721010645544,-500.0,0.00024657,2]
[332181031,1721010645554,-500.0,0.00024657,2]
[332181032,1721010645563,-500.0,0.00024657,2]
[332181033,1721010645574,-527.60306967,0.00024657,2]
[332181034,1721010645583,-500.0,0.00024657,2]
[332181035,1721010645592,-500.0,0.00024657,2]
[332181036,1721010645601,-500.0,0.00024657,2]
[332181037,1721010645611,-503.48611922,0.00024657,2]
[332181038,1721010645621,-501.49692909,0.00024657,2]
[332181039,1721010645630,-500.0,0.00024657,2]
[332181040,1721010645639,-501.48627401,0.00024657,2]
[332181041,1721010645648,-501.89206075,0.00024657,2]
[332181042,1721010645658,-500.0,0.00024657,2]
[332181043,1721010645667,-500.0,0.00024657,2]
[332181044,1721010645677,-500.0,0.00024657,2]
[332181045,1721010645687,-500.0,0.00024657,2]
[332181046,1721010645696,-500.0,0.00024657,2]
[332181047,1721010645706,-500.0,0.00024657,2]
[332181048,1721010645716,-500.0,0.00024657,2]
[332181049,1721010645725,-500.0,0.00024657,2]
[332181050,1721010645735,-500.0,0.00024657,2]
[332181051,1721010645745,-531.63994379,0.00024657,2]
[332181052,1721010645758,-500.0,0.00024657,2]
[332181053,1721010645780,-507.46710864,0.00024657,2]
[332181054,1721010645790,-500.0,0.00024657,2]
[332181055,1721010645801,-500.0,0.00024657,2]
[332181056,1721010645810,-500.0,0.00024657,2]
[332181057,1721010645821,-500.0,0.00024657,2]
[332181058,1721010645830,-500.0,0.00024657,2]
[332181059,1721010645839,-500.0,0.00024657,2]
[332181060,1721010645849,-500.0,0.00024657,2]
[332181061,1721010645860,-500.0,0.00024657,2]
[332181062,1721010645870,-501.99178839,0.00024657,2]
[332181063,1721010645880,-500.0,0.00024657,2]
[332181064,1721010645890,-500.0,0.00024657,2]
[332181065,1721010645899,-500.0,0.00024657,2]
[332181066,1721010645909,-501.64391402,0.00024657,2]
[332181067,1721010645919,-548.72074217,0.00024657,2]
[332181068,1721010645929,-172.19938971,0.00024657,2]
[332181069,1721010645939,-500.0,0.00024657,2]
[332181070,1721010645951,-500.0,0.00024657,2]
[332181071,1721010645964,-500.0,0.00024657,2]
[332181072,1721010645973,-528.44,0.00024657,2]
[332181073,1721010645983,-500.0,0.00024657,2]
[332181074,1721010645993,-500.0,0.00024657,2]
[332181075,1721010646003,-13468.0,0.00024657,2]
[332181076,1721010646021,-500.0,0.00024657,2]
[332181077,1721010646031,-500.0,0.00024657,2]
[332181078,1721010646040,-500.0,0.00024657,2]
[332181079,1721010646049,-578.27,0.00024657,2]
[332181080,1721010646058,-500.0,0.00024657,2]
[332181081,1721010646068,-500.0,0.00024657,2]
[332181082,1721010646077,-500.0,0.00024657,2]
[332181083,1721010646087,-500.0,0.00024657,2]
[332181084,1721010646096,-501.59572252,0.00024657,2]
[332181085,1721010646105,-500.0,0.00024657,2]
[332181086,1721010646115,-514.36311608,0.00024657,2]
[332181087,1721010646125,-500.0,0.00024657,2]
[332181088,1721010646135,-500.0,0.00024657,2]
[332181089,1721010646144,-502.43553884,0.00024657,2]
[332181090,1721010646154,-500.0,0.00024657,2]
[332181091,1721010646164,-500.0,0.00024657,2]
[332181092,1721010646174,-500.0,0.00024657,2]
[332181093,1721010646185,-500.0,0.00024657,2]
[332181094,1721010646194,-500.0,0.00024657,2]
[332181096,1721010646203,-500.0,0.00024657,2]
[332181098,1721010646213,-500.0,0.00024657,2]
[332181100,1721010646222,-500.0,0.00024657,2]
[332181102,1721010646232,-500.0,0.00024657,2]
[332181104,1721010646241,-500.0,0.00024657,2]
[332181106,1721010646250,-500.0,0.00024657,2]
[332181108,1721010646260,-500.0,0.00024657,2]
[332181110,1721010646275,-500.0,0.00024657,2]
[332181112,1721010646284,-500.0,0.00024657,2]
[332181114,1721010646294,-500.0,0.00024657,2]
[332181115,1721010646304,-500.0,0.00024657,2]
[332181116,1721010646314,-1040.44,0.00024657,2]
[332181117,1721010646324,-500.0,0.00024657,2]
[332181118,1721010646334,-500.0,0.00024657,2]
[332181119,1721010646345,-500.0,0.00024657,2]
[332181120,1721010646354,-500.0,0.00024657,2]
[332181123,1721010646364,-505.43727596,0.00024657,2]
[332181126,1721010646374,-500.0,0.00024657,2]
[332181128,1721010646383,-500.0,0.00024657,2]
[332181129,1721010646393,-514.21223352,0.00024657,2]
[332181130,1721010646403,-500.0,0.00024657,2]
[332181131,1721010646414,-500.0,0.00024657,2]
[332181132,1721010646426,-500.68476795,0.00024657,2]
[332181133,1721010646437,-500.0,0.00024657,2]
[332181134,1721010646447,-500.0,0.00024657,2]
[332181135,1721010646456,-500.0,0.00024657,2]
[332181136,1721010646467,-500.0,0.00024657,2]
[332181137,1721010646477,-507.89888252,0.00024657,2]
[332181138,1721010646487,-158.72664048,0.00024657,2]
[332181139,1721010646496,-2623.54,0.00024657,2]
[332181140,1721010646506,-316.66181904,0.00024657,2]
[332181142,1721010646517,-500.0,0.00024657,2]
[332181144,1721010646526,-500.0,0.00024657,2]
[332181146,1721010646535,-537.50531929,0.00024657,2]
[332181148,1721010646545,-500.0,0.00024657,2]
[332181150,1721010646557,-500.0,0.00024657,2]
[332181151,1721010646568,-500.0,0.00024657,2]
[332181152,1721010646578,-500.0,0.00024657,2]
[332181153,1721010646589,-500.0,0.00024657,2]
[332181154,1721010646599,-500.0,0.00024657,2]
[332181155,1721010646610,-500.0,0.00024657,2]
[332181156,1721010646621,-500.0,0.00024657,2]
[332181157,1721010646633,-500.0,0.00024657,2]
[332181158,1721010646645,-500.0,0.00024657,2]
[332181159,1721010646655,-500.0,0.00024657,2]
[332181161,1721010646665,-523.71834355,0.00024657,2]
[332181163,1721010646675,-500.0,0.00024657,2]
[332181165,1721010646687,-500.0,0.00024657,2]
[332181167,1721010646698,-500.0,0.00024657,2]
[332181169,1721010646708,-500.0,0.00024657,2]
[332181171,1721010646719,-323.02820279,0.00024657,2]
[332181172,1721010646728,-500.0,0.00024657,2]
[332181173,1721010646738,-500.0,0.00024657,2]
[332181174,1721010646747,-500.0,0.00024657,2]
[332181175,1721010646756,-500.0,0.00024657,2]
[332181176,1721010646770,-500.0,0.00024657,2]
[332181177,1721010646782,-500.0,0.00024657,2]
[332181178,1721010646794,-500.0,0.00024657,2]
[332181179,1721010646804,-500.0,0.00024657,2]
[332181180,1721010646813,-500.0,0.00024657,2]
[332181181,1721010646823,-500.0,0.00024657,2]
[332181182,1721010646834,-500.0,0.00024657,2]
[332181183,1721010646843,-250.47877542,0.00024657,2]
[332181184,1721010646853,-500.0,0.00024657,2]
[332181185,1721010646863,-500.0,0.00024657,2]
[332181186,1721010646872,-500.0,0.00024657,2]
[332181187,1721010646884,-500.0,0.00024657,2]
[332181188,1721010646894,-500.0,0.00024657,2]
[332181189,1721010646904,-426.05690913,0.00024657,2]
[332181190,1721010646913,-500.0,0.00024657,2]
[332181191,1721010646923,-500.0,0.00024657,2]
[332181192,1721010646932,-500.0,0.00024657,2]
[332181193,1721010646942,-447.62920153,0.00024657,2]
[332181194,1721010647925,-1361.74587991,0.00024457,2]
[332181195,1721010647935,-52.37079847,0.00024657,2]
[332181196,1721010647945,-500.0,0.00024657,2]
[332181197,1721010647955,-500.0,0.00024657,2]
[332181198,1721010647965,-500.0,0.00024657,2]
[332181199,1721010647975,-5499.13,0.00024657,2]
[332181200,1721010647984,-500.0,0.00024657,2]
[332181201,1721010647993,-500.0,0.00024657,2]
[332181202,1721010648003,-500.0,0.00024657,2]
[332181203,1721010648016,-500.0,0.00024657,2]
[332181204,1721010648026,-500.0,0.00024657,2]
[332181205,1721010648036,-503.21132265,0.00024657,2]
[332181206,1721010648046,-564.48,0.00024657,2]
[332181207,1721010648056,-500.0,0.00024657,2]
[332181208,1721010648068,-500.0,0.00024657,2]
[332181209,1721010648078,-500.0,0.00024657,2]
[332181210,1721010648087,-500.0,0.00024657,2]
[332181211,1721010648097,-500.0,0.00024657,2]
[332181212,1721010648106,-500.0,0.00024657,2]
[332181213,1721010648116,-500.0,0.00024657,2]
[332181214,1721010648126,-500.0,0.00024657,2]
[332181215,1721010648136,-1465.51,0.00024657,2]
[332181216,1721010648147,-510.35483412,0.00024657,2]
[332181217,1721010648157,-166.2105848,0.00024657,2]
[332181218,1721010648167,-507.1605847,0.00024657,2]
[332181219,1721010648176,-501.83082212,0.00024657,2]
[332181220,1721010648186,-416.06966294,0.00024657,2]
[332181221,1721010648195,-500.0,0.00024657,2]
[332181222,1721010648205,-500.0,0.00024657,2]
[332181223,1721010648214,-500.0,0.00024657,2]
[332181224,1721010648224,-200.0,0.00024658,15]
[332181225,1721010648234,-380.0,0.00024658,2]
[332181226,1721010648243,-500.0,0.00024658,2]
[332181227,1721010648252,-500.0,0.00024658,2]
[332181228,1721010648265,-446.94654008,0.00024658,2]
[332181229,1721010648275,-500.0,0.00024658,2]
[332181230,1721010648284,-500.0,0.00024658,2]
[332181231,1721010648293,-500.0,0.00024658,2]
[332181232,1721010648303,-192.33002845,0.00024658,2]
[332181233,1721010648312,-4499.999999,0.00024668,2]
[332181234,1721010648322,-223.9,0.0002469,2]
[332181235,1721010648331,-150.112233,0.000247,4]
[332181236,1721010648341,-500.0,0.00024722,2]
[332181237,1721010648351,-500.0,0.00024722,2]
[332181238,1721010648361,-500.0,0.00024722,2]
[332181239,1721010648370,-521.88,0.00024722,2]
[332181240,1721010648380,-456.9342014,0.00024722,2]
[332181241,1721010648390,-1000.0,0.0002477,2]
[332181242,1721010648400,-150.112233,0.000248,2]
[332181243,1721010648409,-27000.0,0.000248,2]
[332181244,1721010648419,-151.0,0.000248,7]
[332181245,1721010648428,-151.0,0.000248,7]
[332181246,1721010648438,-356.490911,0.000248,7]
[332181247,1721010648448,-356.490911,0.000248,7]
[332181248,1721010648457,-151.0,0.000248,7]
[332181249,1721010648467,-151.0,0.000248,7]
[332181250,1721010648477,-151.0,0.000248,7]
[332181251,1721010648486,-1000.0,0.00024841,2]
[332181252,1721010648495,-1000.0,0.00024844,2]
[332181253,1721010648505,-500.0,0.00024899,2]
[332181254,1721010648516,-500.0,0.00024899,2]
[332181255,1721010648526,-500.0,0.00024899,2]
[332181256,1721010648534,-500.0,0.00024899,2]
[332181257,1721010648545,-500.0,0.00024899,2]
[332181258,1721010648557,-500.0,0.00024899,2]
[332181259,1721010648565,-536.12369026,0.00024899,2]
[332181260,1721010648575,-500.0,0.00024899,2]
[332181261,1721010648586,-236.48852208,0.00024899,2]
[332181262,1721010648596,-500.0,0.00024899,2]
[332181263,1721010648606,-500.0,0.00024899,2]
[332181264,1721010648615,-505.24393591,0.00024899,2]
[332181265,1721010648625,-216.224536,0.00024899,7]
[332181266,1721010648635,-216.224536,0.00024899,7]
[332181267,1721010648646,-151.0,0.00024899,7]
[332181268,1721010648655,-151.0,0.00024899,7]
[332181269,1721010648665,-151.688422,0.00024899,7]
[332181270,1721010648674,-521.88,0.00024899,2]
[332181271,1721010648684,-521.88,0.00024899,2]
[332181272,1721010648694,-521.88,0.00024899,2]
[332181273,1721010648704,-521.88,0.00024899,2]
[332181274,1721010648714,-521.88,0.00024899,2]
[332181275,1721010648724,-521.88,0.00024899,2]
[332181276,1721010648735,-521.88,0.00024899,2]
[332181277,1721010648744,-521.88,0.00024899,2]
[332181278,1721010648754,-521.88,0.00024899,2]
[332181279,1721010648767,-521.88,0.00024899,2]
[332181280,1721010648777,-521.88,0.00024899,2]
[332181281,1721010648786,-521.88,0.00024899,2]
[332181282,1721010648796,-521.88,0.00024899,2]
[332181283,1721010648805,-521.88,0.00024899,2]
[332181284,1721010648815,-521.88,0.00024899,2]
[332181285,1721010648824,-522.10907291,0.00024899,2]
[332181286,1721010648834,-22617.3822485,0.000249,2]
[332181287,1721010648914,-9996.49192805,0.000249,2]
[332181292,1721010787414,155.02091145,0.00014999,2]
[332181298,1721011149871,10501.9413433,0.00014998,2]
[332181299,1721011250517,266.41,0.0002525,120]
[332181300,1721011301910,266.0,0.0002525,120]
[332181302,1721011339271,172.56150363,0.00014999,2]
[332181303,1721011372087,612.3769053,0.00015,2]
[332181304,1721011384469,154.76366264,0.00014999,2]
[332181323,1721011705784,1495.32049443,0.00014999,2]
[332181550,1721011835282,-312.13,0.000189,2]
[332181628,1721011838103,-152.03097682,0.000189,2]
[332181631,1721011838113,-197.51297718,0.00019,2]
[332181633,1721011838123,-222.93043991,0.0002,2]
[332181636,1721011838134,-371.746715,0.00021096,2]
[332181638,1721011838145,-166.666666,0.00022932,2]
[332181640,1721011838155,-1000.0,0.000235,7]
[332181641,1721011838165,-166.666666,0.00023557,2]
[332181643,1721011838175,-464.16097682,0.000239,2]
[332181644,1721011838184,-205.3,0.00024164,2]
[332181645,1721011838194,-166.666666,0.00024182,2]
[332181646,1721011838203,-1361.74587991,0.00024479,2]
[332181647,1721011838213,-1625.85437364,0.000245,2]
[332181648,1721011838224,-194.0,0.00024546,2]
[332181649,1721011838234,-286.0,0.00024546,2]
[332181650,1721011838244,-88888.0,0.00024547,3]
[332181651,1721011838255,-2000.0,0.00024547,2]
[332181652,1721011838265,-1000.0,0.00024581,2]
[332181653,1721011838277,-150.112233,0.000246,5]
[332181654,1721011838286,-500.0,0.00024646,2]
[332181655,1721011838295,-395.40053807,0.00024646,2]
[332181656,1721011838307,-425.06652533,0.00024646,2]
[332181657,1721011838317,-60557.3075971,0.00024647,3]
[332181658,1721011838328,-302786.537985,0.00024647,3]
[332181659,1721011838339,-1000.0,0.00024652,2]
[332181660,1721011838351,-1000.0,0.00024656,2]
[332181661,1721011838361,-3450.80525276,0.00024657,5]
[332181662,1721011838371,-2111.30430591,0.00024657,2]
[332181663,1721011838380,-500.0,0.00024657,2]
[332181664,1721011838390,-500.0,0.00024657,2]
[332181665,1721011838399,-505.15320824,0.00024657,2]
[332181666,1721011838409,-625.0,0.00024657,2]
[332181667,1721011838418,-500.0,0.00024657,2]
[332181668,1721011838429,-500.0,0.00024657,2]
[332181670,1721011838439,-500.0,0.00024657,2]
[332181671,1721011838449,-500.0,0.00024657,2]
[332181672,1721011838459,-500.0,0.00024657,2]
[332181673,1721011838468,-500.0,0.00024657,2]
[332181674,1721011838478,-255.96844827,0.00024657,2]
[332181675,1721011838488,-500.0,0.00024657,2]
[332181676,1721011838499,-500.0,0.00024657,2]
[332181677,1721011838509,-500.0,0.00024657,2]
[332181678,1721011838518,-332.82183435,0.00024657,2]
[332181679,1721011838528,-500.0,0.00024657,2]
[332181680,1721011838538,-500.0,0.00024657,2]
[332181681,1721011838547,-500.0,0.00024657,2]
[332181682,1721011838559,-505.24393591,0.00024657,2]
[332181683,1721011838569,-500.0,0.00024657,2]
[332181684,1721011838580,-502.2600409,0.00024657,2]
[332181685,1721011838591,-530.72853776,0.00024657,2]
[332181686,1721011838600,-500.0,0.00024657,2]
[332181687,1721011838611,-500.0,0.00024657,2]
[332181688,1721011838621,-500.0,0.00024657,2]
[332181689,1721011838630,-594.70076227,0.00024657,2]
[332181690,1721011838640,-503.00935655,0.00024657,2]
[332181691,1721011838650,-500.0,0.00024657,2]
[332181692,1721011838660,-501.72694674,0.00024657,2]
[332181693,1721011838669,-500.0,0.00024657,2]
[332181694,1721011838680,-500.0,0.00024657,2]
[332181695,1721011838689,-505.79602796,0.00024657,2]
[332181696,1721011838699,-505.33140028,0.00024657,2]
[332181697,1721011838708,-500.0,0.00024657,2]
[332181698,1721011838719,-500.0,0.00024657,2]
[332181699,1721011838730,-500.0,0.00024657,2]
[332181700,1721011838742,-500.0,0.00024657,2]
[332181701,1721011838752,-500.0,0.00024657,2]
[332181702,1721011838762,-500.0,0.00024657,2]
[332181703,1721011838771,-500.0,0.00024657,2]
[332181704,1721011838780,-500.0,0.00024657,2]
[332181705,1721011838789,-500.0,0.00024657,2]
[332181706,1721011838799,-500.0,0.00024657,2]
[332181707,1721011838809,-500.0,0.00024657,2]
[332181708,1721011838820,-500.0,0.00024657,2]
[332181709,1721011838830,-500.0,0.00024657,2]
[332181710,1721011838841,-500.0,0.00024657,2]
[332181711,1721011838851,-500.0,0.00024657,2]
[332181712,1721011838861,-500.0,0.00024657,2]
[332181713,1721011838871,-500.0,0.00024657,2]
[332181714,1721011838880,-500.0,0.00024657,2]
[332181715,1721011838890,-500.0,0.00024657,2]
[332181716,1721011838900,-503.38711632,0.00024657,2]
[332181717,1721011838914,-505.28762453,0.00024657,2]
[332181718,1721011838925,-500.0,0.00024657,2]
[332181719,1721011838936,-500.0,0.00024657,2]
[332181720,1721011838947,-500.0,0.00024657,2]
[332181721,1721011838958,-502.05244344,0.00024657,2]
[332181722,1721011838968,-500.0,0.00024657,2]
[332181723,1721011838979,-500.0,0.00024657,2]
[332181724,1721011838988,-500.0,0.00024657,2]
[332181725,1721011838997,-563.5892426,0.00024657,2]
[332181726,1721011839008,-507.07375226,0.00024657,2]
[332181727,1721011839019,-500.0,0.00024657,2]
[332181728,1721011839030,-500.0,0.00024657,2]
[332181729,1721011839040,-502.4564145,0.00024657,2]
[332181730,1721011839051,-503.01954233,0.00024657,2]
[332181731,1721011839061,-503.32451895,0.00024657,2]
[332181732,1721011839071,-500.0,0.00024657,2]
[332181733,1721011839080,-500.0,0.00024657,2]
[332181734,1721011839091,-500.0,0.00024657,2]
[332181735,1721011839103,-500.0,0.00024657,2]
[332181736,1721011839112,-1023.6,0.00024657,4]
[332181737,1721011839123,-500.0,0.00024657,2]
[332181738,1721011839132,-500.0,0.00024657,2]
[332181739,1721011839142,-500.0,0.00024657,2]
[332181740,1721011839151,-500.0,0.00024657,2]
[332181741,1721011839160,-500.0,0.00024657,2]
[332181742,1721011839170,-500.0,0.00024657,2]
[332181743,1721011839179,-500.0,0.00024657,2]
[332181744,1721011839188,-500.0,0.00024657,2]
[332181745,1721011839198,-500.0,0.00024657,2]
[332181746,1721011839207,-500.0,0.00024657,2]
[332181747,1721011839217,-500.0,0.00024657,2]
[332181748,1721011839227,-295.11271278,0.00024657,2]
[332181749,1721011839237,-500.0,0.00024657,2]
[332181750,1721011839247,-526.40455469,0.00024657,2]
[332181751,1721011839257,-152.783557,0.00024657,7]
[332181752,1721011839266,-500.0,0.00024657,2]
[332181753,1721011839276,-570.98639145,0.00024657,2]
[332181754,1721011839286,-500.0,0.00024657,2]
[332181755,1721011839295,-151.0,0.00024657,7]
[332181756,1721011839306,-500.0,0.00024657,2]
[332181757,1721011839315,-502.81125012,0.00024657,2]
[332181758,1721011839325,-500.0,0.00024657,2]
[332181759,1721011839334,-500.0,0.00024657,2]
[332181760,1721011839343,-166.2105848,0.00024657,2]
[332181761,1721011839353,-500.0,0.00024657,2]
[332181762,1721011839362,-500.0,0.00024657,2]
[332181763,1721011839372,-500.0,0.00024657,2]